fUSD/lending_fUSD_20260205
["ID","MTS","AMOUNT","RATE_DAILY","PERIOD"]
[404528806,1770250231364,-300.0,0.00011,2]
[404528808,1770250231375,-200.0,0.00011389,2]
[404528809,1770250231385,-1200.0,0.00011434,2]
[404528810,1770250231396,-1075.90264677,0.00011435,2]
[404528811,1770250231410,-16276.87627361,0.00011435,2]
[404528812,1770250231436,-1135.10107962,0.00011435,2]
[404528813,1770250231447,-2631.40927272,0.00011516,2]
[404528814,1770250231459,-348.2360598,0.00011516,2]
[404528815,1770250231507,-2710.23849946,0.00011516,2]
[404528816,1770250231517,-171.9502768,0.00011516,2]
[404528817,1770250231528,-272.32222969,0.00011516,2]
[404528818,1770250231541,-5194.60212365,0.00011549,2]
[404528819,1770250231552,-500.0,0.00011562,2]
[404528820,1770250231563,-151.0,0.00011596,2]
[404528821,1770250231574,-201.48905941,0.00011598,2]
[404528823,1770250231585,-507.87484294,0.00011598,2]
[404528825,1770250231595,-500.0,0.00011598,2]
[404528827,1770250231605,-500.0,0.00011598,2]
[404528829,1770250231615,-634.94409274,0.00011598,2]
[404528831,1770250231625,-31455.40924531,0.00011599,2]
[404528834,1770250231638,-4494.88431907,0.00011599,2]
[404528863,1770250237629,-1465.66,0.00011516,2]
[404528876,1770250243558,-2090.0598551,0.00011516,2]
[404528877,1770250244570,-2827.12373703,0.00011516,2]
[404528884,1770250245602,-3810.38338413,0.00011516,2]
[404528885,1770250245611,-339671.50651493,0.00011599,2]
[404528886,1770250245624,-109527.78406383,0.00011599,2]
[404528887,1770250245758,-22623.22621771,0.00011599,2]
[404528888,1770250245769,-882.34862883,0.00011599,2]
[404529401,1770250692116,5483.0,0.000115,5]
[404529402,1770250828698,264.229695,0.00013862,7]
[404529440,1770251334757,-150.39,0.0001035,2]
[404529441,1770251334779,-1000.0,0.00010652,2]
[404529442,1770251334800,-238.0,0.00010721,2]
[404529443,1770251334824,-631.73,0.00010721,2]
[404529444,1770251334844,-234.8731037,0.00010877,2]
[404529445,1770251334869,-150.0,0.00010959,2]
[404529446,1770251334894,-1600.0,0.00010972,2]
[404529460,1770251431501,-287.0,0.00011058,2]
[404529478,1770251431700,-433.078,0.00011058,2]
[404529479,1770251431712,-479.922,0.00011058,2]
[404529480,1770251431721,-129.9764744,0.00011058,2]
[404529481,1770251431774,-21.0235256,0.00011058,2]
[404529482,1770251431783,-478.9764744,0.00011059,2]
[404529503,1770251437856,-238.28195097,0.00010999,2]
[404529504,1770251437865,-3314.2794136,0.00011059,2]
[404529505,1770251437874,-300.0,0.00011059,2]
[404529506,1770251437884,-171.95027679,0.00011059,2]
[404529507,1770251437893,-300.0,0.0001106,2]
[404529508,1770251437902,-236.0,0.0001106,2]
[404529509,1770251437911,-150.0,0.0001106,2]
[404529510,1770251437920,-355.51239006,0.0001106,2]
[404529511,1770251437930,-181.66045475,0.0001106,2]
[404529512,1770251437940,-389699.54602885,0.00011061,2]
[404529513,1770251437951,-375.58251769,0.00011061,2]
[404529514,1770251437965,-2553.98606414,0.00011061,2]
[404529515,1770251437976,-1849.64,0.00011061,2]
[404529520,1770251439699,-265.1286,0.00011061,2]
[404529521,1770251439782,-910.1,0.00011061,2]
[404529522,1770251439793,-333.26194966,0.00011061,2]
[404529523,1770251439863,-1463.38,0.00011061,2]
[404529524,1770251439878,-3102549.37483966,0.00011061,2]
[404529525,1770251439887,-9173.90427867,0.00011099,2]
[404529526,1770251439896,-2171.78,0.00011161,2]
[404529527,1770251439906,-500.0,0.00011178,2]
[404529528,1770251439915,-500.0,0.00011205,2]
[404529529,1770251439924,-2225.65,0.00011233,2]
[404529530,1770251439934,-5021.44871953,0.00011281,2]
[404529531,1770251439943,-962.0,0.00011309,2]
[404529532,1770251439952,-150.0,0.00011354,2]
[404529533,1770251439962,-150.0,0.00011354,2]
[404529534,1770251439972,-150.0,0.00011354,2]
[404529535,1770251439982,-150.0,0.00011354,2]
[404529536,1770251439991,-150.0,0.00011354,2]
[404529537,1770251440000,-500.0,0.00011354,2]
[404529538,1770251440009,-150.0,0.00011354,2]
[404529539,1770251440020,-500.0,0.00011354,2]
[404529540,1770251440030,-218.99408994,0.00011355,2]
[404529541,1770251440039,-540.0,0.00011358,2]
[404529542,1770251440048,-200.0,0.00011409,2]
[404529543,1770251440058,-150.0,0.00011409,2]
[404529544,1770251440068,-150.0,0.00011409,2]
[404529545,1770251440078,-500.0,0.00011409,2]
[404529546,1770251440088,-500.0,0.00011409,2]
[404529547,1770251440097,-500.0,0.00011432,2]
[404529548,1770251440106,-617.0,0.00011441,2]
[404529549,1770251440115,-200.0,0.00011464,2]
[404529550,1770251440124,-200.0,0.00011464,2]
[404529551,1770251440133,-500.0,0.00011464,2]
[404529552,1770251440143,-500.0,0.00011464,2]
[404529553,1770251440151,-500.0,0.00011487,2]
[404529554,1770251440163,-242.0,0.00011518,2]
[404529555,1770251440172,-205.97861364,0.00011518,2]
[404529556,1770251440181,-500.0,0.00011518,2]
[404529557,1770251440190,-226.0,0.00011533,2]
[404529559,1770251440199,-500.0,0.00011542,2]
[404529560,1770251440209,-4123.0271,0.00011549,2]
[404529561,1770251440219,-3993.3885,0.00011549,2]
[404529562,1770251440229,-200.0,0.00011555,2]
[404529563,1770251440238,-500.0,0.00011555,2]
[404529564,1770251440247,-151.0,0.00011555,2]
[404529565,1770251440257,-151.0,0.00011555,2]
[404529566,1770251440266,-151.0,0.00011555,2]
[404529567,1770251440275,-151.0,0.00011555,2]
[404529568,1770251440284,-151.0,0.00011555,2]
[404529569,1770251440293,-151.0,0.00011555,2]
[404529570,1770251440303,-151.0,0.00011555,2]
[404529571,1770251440313,-151.0,0.00011555,2]
[404529572,1770251440325,-151.0,0.00011555,2]
[404529573,1770251440334,-151.0,0.00011555,2]
[404529574,1770251440344,-151.0,0.00011555,2]
[404529575,1770251440353,-500.0,0.00011555,2]
[404529576,1770251440363,-500.0,0.00011555,2]
[404529577,1770251440372,-500.0,0.00011555,2]
[404529578,1770251440381,-500.0,0.00011555,2]
[404529579,1770251440390,-500.0,0.00011555,2]
[404529580,1770251440399,-500.0,0.00011555,2]
[404529581,1770251440407,-500.0,0.00011555,2]
[404529582,1770251440417,-500.0,0.00011555,2]
[404529583,1770251440426,-500.0,0.00011555,2]
[404529584,1770251440436,-500.0,0.00011555,2]
[404529585,1770251440445,-500.0,0.00011555,2]
[404529586,1770251440456,-200.0,0.00011555,2]
[404529587,1770251440467,-52904.0,0.00011562,2]
[404529588,1770251440476,-500.0,0.00011573,2]
[404529589,1770251440485,-479.0,0.00011585,2]
[404529590,1770251440495,-500.0,0.00011596,2]
[404529591,1770251440505,-1085.10121987,0.00011598,3]
[404529592,1770251440515,-641.0,0.00011599,3]
[404529593,1770251440524,-151.0,0.00011599,3]
[404529594,1770251440533,-1000.0,0.0001162,2]
[404529595,1770251440543,-2012.2473,0.0001162,2]
[404529596,1770251440561,-151.0,0.00011625,2]
[404529597,1770251440574,-500.0,0.00011628,2]
[404529598,1770251440583,-1174.0,0.00011649,2]
[404529599,1770251440593,-500.0,0.00011651,2]
[404529600,1770251440602,-500.0,0.00011683,2]
[404529601,1770251440611,-162.69,0.00011699,2]
[404529602,1770251440621,-164.24,0.000117,2]
[404529603,1770251440630,-500.0,0.00011706,2]
[404529604,1770251440640,-62461.34,0.00011706,2]
[404529605,1770251440649,-500.0,0.00011738,2]
[404529606,1770251440658,-455.85221197,0.00011761,2]
[404529607,1770251440667,-8009.87,0.00011771,2]
[404529608,1770251440676,-166.66,0.00011785,2]
[404529609,1770251440685,-201.70221777,0.00011792,2]
[404529610,1770251440694,-9173.90427859,0.00011818,2]
[404529611,1770251440703,-150.0,0.00011823,2]
[404529612,1770251440713,-151.0,0.00011838,2]
[404529613,1770251440724,-1285.95335494,0.00011838,2]
[404529614,1770251440734,-200.0,0.00011838,2]
[404529615,1770251440743,-2000.0,0.00011838,2]
[404529616,1770251440752,-1360.92717745,0.00011838,2]
[404529617,1770251440761,-500.0,0.00011939,2]
[404529618,1770251440772,-200.0,0.00011956,2]
[404529619,1770251440781,-162.69,0.00011973,2]
[404529620,1770251440790,-1000.0,0.00011983,2]
[404529621,1770251440799,-1672.47,0.00012011,2]
[404529622,1770251440808,-166.66,0.00012061,2]
[404529623,1770251440818,-150.39,0.00012075,2]
[404529624,1770251440827,-200.0,0.00012076,2]
[404529625,1770251440836,-300.64,0.00012079,2]
[404529626,1770251440847,-200.0,0.00012103,2]
[404529627,1770251440856,-500.0,0.00012103,2]
[404529628,1770251440865,-202.08466483,0.00012103,2]
[404529629,1770251440874,-420.0,0.00012153,2]
[404529630,1770251440884,-1680.0,0.00012164,2]
[404529631,1770251440893,-166.66,0.00012174,2]
[404529632,1770251440902,-396.25,0.00012182,2]
[404529633,1770251440912,-200.0,0.00012197,2]
[404529634,1770251440926,-162.69,0.00012247,2]
[404529635,1770251440936,-2064.55,0.00012272,2]
[404529636,1770251440947,-166.66,0.00012304,2]
[404529637,1770251440956,-200.0,0.00012319,2]
[404529638,1770251440966,-151.0,0.00012322,2]
[404529639,1770251440976,-1600.0,0.00012343,2]
[404529640,1770251440985,-439.08725,0.0001247,2]
[404529641,1770251440995,-162.69,0.00012521,2]
[404529642,1770251441004,-166.66,0.00012548,2]
[404529643,1770251441013,-166.66,0.00012563,2]
[404529644,1770251441027,-9173.90427859,0.00012577,2]
[404529645,1770251441037,-1000.0,0.00012598,2]
[404529646,1770251441047,-1000.0,0.00012598,2]
[404529647,1770251441059,-1000.0,0.00012598,2]
[404529648,1770251441068,-1000.0,0.00012598,2]
[404529649,1770251441077,-1000.0,0.00012598,2]
[404529650,1770251441088,-1000.0,0.00012598,2]
[404529651,1770251441100,-1000.0,0.00012598,2]
[404529652,1770251441111,-1000.0,0.00012598,2]
[404529653,1770251441120,-1000.0,0.00012598,2]
[404529654,1770251441130,-1000.0,0.00012598,2]
[404529655,1770251441140,-1000.0,0.00012598,2]
[404529656,1770251441149,-1000.0,0.00012598,2]
[404529657,1770251441159,-1000.0,0.00012598,2]
[404529658,1770251441168,-1000.0,0.00012598,2]
[404529659,1770251441178,-1000.0,0.00012598,2]
[404529660,1770251441187,-1000.0,0.00012598,2]
[404529661,1770251441196,-1000.0,0.00012598,2]
[404529662,1770251441206,-1000.0,0.00012598,2]
[404529663,1770251441216,-1000.0,0.00012598,2]
[404529664,1770251441226,-1000.0,0.00012598,2]
[404529665,1770251441236,-1000.0,0.00012598,2]
[404529666,1770251441246,-1000.0,0.00012598,2]
[404529667,1770251441255,-1000.0,0.00012598,2]
[404529668,1770251441264,-1141.04007611,0.00012598,2]
[404529669,1770251441274,-439.08725,0.00012598,2]
[404529670,1770251441283,-439.08725,0.00012598,2]
[404529671,1770251441292,-439.08725,0.00012598,2]
[404529672,1770251441301,-439.08725,0.00012598,2]
[404529673,1770251441311,-439.08725,0.00012598,2]
[404529674,1770251441320,-500.0,0.00012651,2]
[404529675,1770251441330,-166.66,0.00012792,2]
[404529676,1770251441339,-162.69,0.00012795,2]
[404529677,1770251441348,-5021.44871953,0.00012883,2]
[404529678,1770251441357,-166.66,0.00012952,2]
[404529679,1770251441367,-578.20924308,0.00012982,2]
[404529680,1770251441376,-174.61919141,0.00012982,2]
[404529681,1770251441386,-500.0,0.00012982,2]
[404529682,1770251441395,-500.0,0.00012982,2]
[404529683,1770251441404,-322.6107,0.00012982,2]
[404529684,1770251441413,-500.0,0.00012982,2]
[404529685,1770251441422,-500.0,0.00012982,2]
[404529686,1770251441432,-500.0,0.00012982,2]
[404529687,1770251441441,-500.0,0.00012982,2]
[404529688,1770251441450,-743.50770149,0.00012982,2]
[404529689,1770251441459,-500.0,0.00012982,2]
[404529690,1770251441470,-500.0,0.00012982,2]
[404529691,1770251441479,-500.0,0.00012982,2]
[404529692,1770251441492,-500.0,0.00012982,2]
[404529693,1770251441502,-500.0,0.00012982,2]
[404529694,1770251441511,-500.0,0.00012982,2]
[404529695,1770251441521,-500.0,0.00012982,2]
[404529696,1770251441530,-500.0,0.00012982,2]
[404529697,1770251441540,-500.0,0.00012982,2]
[404529698,1770251441549,-500.0,0.00012982,2]
[404529699,1770251441559,-500.0,0.00012982,2]
[404529700,1770251441569,-500.0,0.00012982,2]
[404529701,1770251441578,-500.0,0.00012982,2]
[404529702,1770251441587,-500.0,0.00012982,2]
[404529703,1770251441597,-500.0,0.00012982,2]
[404529704,1770251441606,-209.40437684,0.00012982,2]
[404529705,1770251441615,-250.0,0.00013,2]
[404529706,1770251441624,-217.15233878,0.00013037,2]
[404529707,1770251441634,-162.74,0.00013069,2]
[404529708,1770251441643,-225.18697532,0.00013092,2]
[404529709,1770251441653,-233.51889341,0.00013147,2]
[404529710,1770251441663,-500.0,0.00013199,2]
[404529711,1770251441672,-242.15909246,0.00013202,2]
[404529712,1770251441682,-251.11897888,0.00013257,2]
[404529713,1770251441694,-260.4103811,0.00013312,2]
[404529714,1770251441704,-1000.0,0.00013315,2]
[404529715,1770251441714,-9173.90427859,0.00013336,2]
[404529716,1770251441724,-166.66,0.00013341,2]
[404529717,1770251441734,-587.0,0.00013354,2]
[404529718,1770251441743,-270.0455652,0.00013367,2]
[404529719,1770251441753,-155.0,0.0001338,2]
[404529720,1770251441763,-200.0,0.00013399,2]
[404529721,1770251441771,-200.0,0.00013406,2]
[404529722,1770251441781,-280.03725112,0.00013422,2]
[404529723,1770251441791,-3240.0,0.00013425,2]
[404529724,1770251441801,-200.0,0.00013433,2]
[404529725,1770251441811,-200.0,0.00013435,2]
[404529726,1770251441821,-200.0,0.00013437,2]
[404529727,1770251441831,-290.39862941,0.00013477,2]
[404529728,1770251441840,-181.08010149,0.0001353,2]
[404529729,1770251441849,-771.01748645,0.0001353,2]
[404529730,1770251441859,-15229.0,0.00013531,2]
[404529731,1770251441868,-301.1433787,0.00013532,2]
[404529732,1770251441878,-200.0,0.00013627,2]
[404529733,1770251441891,-500.0,0.00013698,2]
[404529734,1770251441900,-500.0,0.00013698,2]
[404529735,1770251441910,-500.0,0.00013698,2]
[404529736,1770251441919,-500.0,0.00013698,2]
[404529737,1770251441928,-500.0,0.00013698,2]
[404529738,1770251441938,-500.0,0.00013698,2]
[404529739,1770251441948,-500.0,0.00013698,2]
[404529740,1770251441957,-500.0,0.00013698,2]
[404529741,1770251441969,-500.0,0.00013698,2]
[404529742,1770251441979,-500.0,0.00013698,2]
[404529743,1770251441989,-500.0,0.00013698,2]
[404529744,1770251441999,-500.0,0.00013698,2]
[404529745,1770251442009,-200.0,0.00013699,2]
[404529746,1770251442021,-178.59,0.00013699,2]
[404529747,1770251442031,-500.0,0.00013699,2]
[404529748,1770251442040,-200.0,0.00013699,2]
[404529749,1770251442050,-1600.0,0.00013715,2]
[404529750,1770251442061,-160.058718,0.00013727,2]
[404529751,1770251442071,-38230.0690539,0.0001373,2]
[404529752,1770251442080,-166.66,0.0001373,2]
[404529753,1770251442090,-170.567658,0.00013735,2]
[404529754,1770251442102,-500.0,0.00013747,2]
[404529755,1770251442112,-150.39,0.00013799,2]
[404529756,1770251442121,-641.0,0.00013804,3]
[404529757,1770251442131,-892.38739354,0.00014,2]
[404529758,1770251442140,-311.2110173,0.00014049,2]
[404529759,1770251442150,-187.78006525,0.00014078,2]
[404529760,1770251442160,-645.68719693,0.00014078,2]
[404529761,1770251442169,-9173.90427859,0.00014095,2]
[404529762,1770251442179,-209.40437684,0.00014119,2]
[404529763,1770251442188,-200.0,0.00014147,2]
[404529764,1770251442198,-2850.51568798,0.00014195,2]
[404529765,1770251442207,-334.5472959,0.00014351,2]
[404529766,1770251442216,-3793.25588798,0.0001448,2]
[404529767,1770251442226,-5021.44871953,0.00014486,2]
[404529768,1770251442237,-300.64,0.00014553,2]
[404529769,1770251442246,-200.0,0.00014559,2]
[404529770,1770251442256,-500.0,0.000146,2]
[404529771,1770251442266,-500.0,0.000146,2]
[404529772,1770251442276,-500.0,0.000146,2]
[404529773,1770251442288,-194.72792766,0.00014626,2]
[404529774,1770251442298,-1000.0,0.00014646,2]
[404529775,1770251442308,-217.15233878,0.00014667,2]
[404529776,1770251442318,-171.0,0.00014674,2]
[404529777,1770251442328,-7522.55600014,0.00014695,2]
[404529778,1770251442337,-13270.68046131,0.00014695,2]
[404529779,1770251442347,-19852.14430285,0.00014695,2]
[404529780,1770251442357,-26860.6503,0.00014695,2]
[404529781,1770251442366,-155.468766,0.00014695,2]
[404529782,1770251442376,-1500.0,0.000147,2]
[404529783,1770251442385,-200.0,0.00014733,2]
[404529784,1770251442395,-1334.0,0.00014843,2]
[404529785,1770251442404,-9173.90427859,0.00014854,2]
[404529786,1770251442413,-200.0,0.00014888,2]
[404529787,1770251442423,-157.0,0.000149,2]
[404529789,1770251442432,-1334.0,0.0001493,2]
[404529791,1770251442441,-1334.0,0.0001497,2]
[404529792,1770251442451,-1334.0,0.00014978,2]
[404529793,1770251442461,-869.18,0.00014982,2]
[404529794,1770251442471,-250.0,0.00015,2]
[404529795,1770251442481,-152.39,0.00015,2]
[404529796,1770251442491,-200.0,0.00015004,2]
[404529797,1770251442500,-205.32,0.00015059,2]
[404529798,1770251442509,-178.59,0.00015068,2]
[404529799,1770251442519,-1600.0,0.00015086,2]
[404529800,1770251442528,-1000.0,0.00015148,2]
[404529801,1770251442538,-1000.0,0.00015148,2]
[404529802,1770251442547,-1000.0,0.00015148,2]
[404529803,1770251442556,-201.93286099,0.00015174,2]
[404529804,1770251442567,-225.18697532,0.00015215,2]
[404529805,1770251442578,-869.18,0.00015256,2]
[404529806,1770251442588,-200.41766614,0.00015279,2]
[404529807,1770251442600,-1345.0,0.00015299,2]
[404529808,1770251442609,-252.71,0.00015326,2]
[404529809,1770251442620,-213.14,0.00015423,2]
[404529810,1770251442630,-1345.0,0.00015429,2]
[404529811,1770251442639,-150.39,0.00015524,2]
[404529812,1770251442649,-868.34,0.0001553,2]
[404529813,1770251442659,-157.0,0.000156,2]
[404529814,1770251442677,-9173.90427859,0.00015613,2]
[404529815,1770251442693,-1345.0,0.00015642,2]
[404529816,1770251442703,-981.0,0.0001565,2]
[404529817,1770251442712,-218.0,0.00015675,2]
[404529818,1770251442723,-1345.0,0.00015678,2]
[404529819,1770251442733,-773.56,0.00015695,2]
[404529820,1770251442742,-1500.0,0.00015696,2]
[404529821,1770251442751,-516.45192786,0.00015696,2]
[404529822,1770251442761,-1500.0,0.00015696,2]
[404529823,1770251442772,-500.0,0.00015704,2]
[404529824,1770251443049,-500.0,0.00015704,2]
[404529825,1770251443061,-346.92554585,0.0001572,2]
[404529826,1770251443070,-501.44591658,0.00015721,2]
[404529827,1770251443081,-209.40437684,0.00015722,2]
[404529828,1770251443090,-234.30068157,0.00015763,2]
[404529829,1770251443102,-218.0,0.00015776,2]
[404529830,1770251443113,-500.0,0.00015816,2]
[404529831,1770251443122,-500.0,0.00015816,2]
[404529832,1770251443133,-160.0,0.00015918,2]
[404529833,1770251443143,-981.0,0.00015935,2]
[404529834,1770251443152,-218.0,0.00015935,2]
[404529835,1770251443161,-300.64,0.00015959,2]
[404529836,1770251443171,-772.9,0.00015969,2]
[404529837,1770251443181,-1000.0,0.00015977,2]
[404529838,1770251443192,-189917.0712701,0.00016,4]
[404529839,1770251443201,-641.0,0.0001601,3]
[404529840,1770251443211,-981.0,0.00016013,2]
[404529841,1770251443221,-251.0,0.00016066,2]
[404529842,1770251443230,-1273.693,0.00016066,2]
[404529843,1770251443239,-917.0,0.00016066,2]
[404529844,1770251443248,-1205.0,0.00016066,2]
[404529845,1770251443258,-3253.0,0.00016066,2]
[404529846,1770251443268,-1317.0,0.00016066,2]
[404529847,1770251443278,-2476.46,0.00016066,2]
[404529848,1770251443289,-1410.0,0.00016066,2]
[404529849,1770251443300,-218.0,0.00016088,2]
[404529850,1770251443309,-5021.44871953,0.00016089,2]
[404529851,1770251443318,-150.99,0.00016116,2]
[404529852,1770251443327,-9999.99,0.00016116,2]
[404529853,1770251443335,-981.0,0.00016122,2]
[404529854,1770251443344,-981.0,0.00016183,2]
[404529855,1770251443357,-2612.42218713,0.000162,5]
[404529856,1770251443368,-981.0,0.00016208,2]
[404529857,1770251443379,-2000.0,0.00016244,2]
[404529858,1770251443388,-500.0,0.00016254,2]
[404529859,1770251443397,-500.0,0.00016254,2]
[404529860,1770251443407,-500.0,0.00016254,2]
[404529861,1770251443415,-500.0,0.00016254,2]
[404529862,1770251443424,-500.0,0.00016254,2]
[404529863,1770251443433,-500.0,0.00016254,2]
[404529864,1770251443442,-500.0,0.00016254,2]
[404529865,1770251443452,-500.0,0.00016254,2]
[404529866,1770251443461,-217.15233878,0.0001627,2]
[404529867,1770251443471,-157.09,0.000163,2]
[404529868,1770251443480,-220.191412,0.00016382,7]
[404529869,1770251443489,-151.0,0.00016438,2]
[404529870,1770251443499,-178.59,0.00016438,2]
[404529871,1770251443508,-800.0,0.00016438,2]
[404529872,1770251443517,-1000.0,0.00016438,2]
[404529873,1770251443526,-151.0,0.00016438,2]
[404529874,1770251443535,-163.698799,0.00016438,2]
[404529875,1770251443544,-481.28670726,0.00016451,2]
[404529876,1770251443553,-481.28670728,0.00016451,2]
[404529877,1770251443562,-481.28670728,0.00016451,2]
[404529878,1770251443572,-1600.0,0.00016458,2]
[404529879,1770251443581,-1000.0,0.00016712,2]
[404529880,1770251443590,-165.77,0.00016712,2]
[404529881,1770251443599,-160.0,0.00016746,2]
[404529882,1770251443608,-2285.27371838,0.00016792,2]
[404529883,1770251443618,-225.18697532,0.00016818,2]
[404529884,1770251443627,-481.28670728,0.00016862,2]
[404529885,1770251443635,-1000.0,0.00016986,2]
[404529886,1770251443645,-1085.10121987,0.00016999,5]
[404529887,1770251443654,-500.0,0.00016999,2]
[404529888,1770251443664,-500.0,0.00016999,2]
[404529889,1770251443673,-500.0,0.00016999,2]
[404529890,1770251443682,-500.0,0.00016999,2]
[404529891,1770251443691,-434.71,0.00016999,2]
[404529892,1770251443700,-500.0,0.00016999,2]
[404529893,1770251443709,-279.86,0.00016999,2]
[404529894,1770251443718,-193.94,0.00016999,2]
[404529895,1770251443728,-500.0,0.00016999,2]
[404529896,1770251443736,-400.99392015,0.00016999,2]
[404529897,1770251443749,-500.0,0.00016999,2]
[404529898,1770251443758,-500.0,0.00016999,2]
[404529899,1770251443767,-500.0,0.00016999,2]
[404529900,1770251443777,-442.68,0.00016999,2]
[404529901,1770251443786,-500.0,0.00016999,2]
[404529902,1770251443795,-500.0,0.00016999,2]
[404529903,1770251443804,-500.0,0.00016999,2]
[404529904,1770251443814,-500.0,0.00016999,2]
[404529905,1770251443825,-173.07302664,0.00016999,2]
[404529906,1770251443836,-500.0,0.00016999,2]
[404529907,1770251443845,-500.0,0.00016999,2]
[404529908,1770251443856,-598088.49905622,0.00017,2]
[404529909,1770251443865,-300.0,0.00017,2]
[404529910,1770251443877,-359.76179104,0.00017089,2]
[404529911,1770251443887,-160.0,0.00017112,2]
[404529912,1770251443897,-5707.0,0.00017164,2]
[404529913,1770251443907,-2064.55,0.00017181,2]
[404529914,1770251443917,-1000.0,0.0001726,2]
[404529915,1770251443926,-5707.0,0.00017328,2]
[404529916,1770251443935,-839.406,0.00017365,2]
[404529917,1770251443944,-154.7015669,0.00017365,2]
[404529918,1770251443954,-233.51889341,0.00017366,2]
[404529919,1770251443963,-600.0,0.0001746,2]
[404529920,1770251443974,-600.0,0.0001746,2]
[404529921,1770251443983,-765.49950983,0.0001746,2]
[404529922,1770251443992,-13523.73022169,0.000175,2]
[404529923,1770251444002,-1607.10450933,0.000175,2]
[404529924,1770251444014,-200.43,0.00017522,2]
[404529925,1770251444026,-718.43917855,0.00017534,2]
[404529926,1770251444035,-1000.0,0.00017534,2]
[404529927,1770251444044,-200.43,0.00017678,2]
[404529928,1770251444053,-5021.44871953,0.00017691,2]
[404529929,1770251444063,-20956.179717,0.000177,3]
[404529930,1770251444072,-160.0,0.000177,3]
[404529931,1770251444082,-782.86384289,0.000177,2]
[404529932,1770251444092,-150.0,0.00017808,2]
[404529933,1770251444101,-1000.0,0.00017808,2]
[404529934,1770251444110,-1002.24586406,0.0001786,2]
[404529935,1770251444119,-150.0,0.00017863,2]
[404529936,1770251444131,-10000.0,0.00017873,2]
[404529937,1770251444140,-509.14069428,0.00017873,2]
[404529938,1770251444150,-509.14069426,0.00017887,2]
[404529939,1770251444161,-500.0,0.00017899,2]
[404529940,1770251444171,-500.0,0.00017899,2]
[404529941,1770251444180,-3166.85036875,0.000179,3]
[404529942,1770251444189,-509.14069426,0.000179,2]
[404529943,1770251444198,-3793.25588798,0.000179,2]
[404529944,1770251444207,-171.95027679,0.000179,2]
[404529945,1770251444217,-500.0,0.000179,2]
[404529946,1770251444227,-500.0,0.000179,2]
[404529947,1770251444237,-500.0,0.000179,2]
[404529948,1770251444246,-500.0,0.000179,2]
[404529949,1770251444254,-500.0,0.000179,2]
[404529950,1770251444263,-500.0,0.000179,2]
[404529951,1770251444272,-500.0,0.000179,2]
[404529952,1770251444282,-437.44898124,0.000179,2]
[404529953,1770251444292,-242.15909246,0.00017914,2]
[404529954,1770251444301,-200.0,0.00017918,2]
[404529955,1770251444311,-500.0,0.00017972,2]
[404529956,1770251444320,-500.0,0.00017972,2]
[404529957,1770251444329,-500.0,0.00017973,2]
[404529958,1770251444339,-500.0,0.00017973,2]
[404529959,1770251444347,-510.18045703,0.00017973,2]
[404529960,1770251444356,-500.0,0.00017973,2]
[404529961,1770251444365,-500.0,0.00017973,2]
[404529962,1770251444374,-500.0,0.00017973,2]
[404529963,1770251444383,-500.0,0.00017973,2]
[404529964,1770251444392,-500.0,0.00017973,2]
[404529965,1770251444401,-500.0,0.00017973,2]